Workbook

Sheet INSTRUCTIONS
A1: INSTRUCTIONS FOR FILLING OUT DEPOSIT CONTROL FUEL ADDITIVE REPORTING FORM
A3: * | B3: Please fill in the gray shaded areas.
A4: * | B4: Use the field switches to indicate the reporting period (i.e. month and dates), as well as the grade(s) of fuel.
B5: For facilities that can not report by grade use the "GAS" field.
A6: * | B6: If there was a change in additive or if no fuel was additized at any period during the year, please check the box
B7: and notate the event in the Notes / Comments section. This can be handwritten.
A8: * | B8: If you are reporting records in which you additized fuel for another company via contract, or some other agreement,
B9: please indicate this in the "Notes / Comments" section. Can be handwritten.
A10: * | B10: Sample forms are locked and for informational purposes only. Please use the "unprotected" blank form for reporting.
B11: If you need to unlock the sample forms for some reason, the password is "CARB."
A12: * | B12: Note that some areas will automatically fill, it remains the responsibility of the facility to check for the accuracy of these
B13: areas as well as the entire reporting form.
A14: * | B14: Please remember to have the authorizing official sign the form.
A16: * | B16: Refer questions to Juan Osornio.
B17: josornio@arb.ca.gov | E17: (951) 542-3331

Sheet Blank Form
S1: Select Year
C2: STATE OF CALIFORNIA | J2: VOLUMETRIC ADDITIVE RECONCILIATION (VAR) | Q2: Select | R2: Select | S2: 2015 | T2: None
C3: California Environmental Protection Agency | Q3: January | R3: 1st | S3: 2016 | T3: Regular
C4: AIR RESOURCES BOARD | I4: Company Name: | Q4: February | R4: 2nd | S4: 2017 | T4: Midgrade
C5: ED/FOB/FES-152 (REV 02/23) | I5: Facility Location: | Q5: March | R5: 3rd | S5: 2018 | T5: Premium
Q6: April | R6: 4th | S6: 2019 | T6: GAS
I7: Registered Additive: | Q7: May | R7: 5th | S7: 2020
I8: Reference E.O. #: | N8: LAC Rate: | P8: gal/kgal | Q8: June | R8: 6th | S8: 2021
A9: YEAR: | B9: Select Year | Q9: July | R9: 7th | S9: 2022
F10: Change additive/ | I10: VOLUME of FUEL (gallons) | K10: VOLUME of DCA (gallons) | N10: ACTUAL CONCENTRATION | Q10: August | R10: 8th | S10: 2023
A11: Month: | B11: Date: | D11: thru: | F11: None added | H11: GRADE | M11: Total DCA: | P11: (gal/kgal) | Q11: September | R11: 9th | S11: 2024
F12: (Go to Notes) | H12: None | N12: =IF(I12=0,"0",K12/I12*1000) -> 0 | Q12: October | R12: 10th | S12: 2025
A13: Select Month | C13: Select | E13: Select | H13: None | M13: =SUM(K12:L14) -> 0 | N13: =IF(I13=0,"0",K13/I13*1000) -> 0 | Q13: November | R13: 11th | S13: 2026
H14: None | N14: 0 | Q14: December | R14: 12th | S14: 2027
H15: None | N15: 0 | Q15: End Page | R15: 13th | S15: 2028
A16: Select Month | C16: Select | E16: Select | H16: None | M16: =SUM(K15:L17) -> 0 | N16: 0 | R16: 14th | S16: 2029
H17: None | N17: 0 | R17: 15th | S17: 2030
H18: None | N18: 0 | R18: 16th | S18: 2031
A19: Select Month | C19: Select | E19: Select | H19: None | M19: =SUM(K18:L20) -> 0 | N19: 0 | R19: 17th
H20: None | N20: 0 | R20: 18th
H21: None | N21: 0 | R21: 19th
A22: Select Month | C22: Select | E22: Select | H22: None | M22: =SUM(K21:L23) -> 0 | N22: 0 | R22: 20th
H23: None | N23: 0 | R23: 21st
H24: None | N24: 0 | R24: 22nd
A25: Select Month | C25: Select | E25: Select | H25: None | M25: =SUM(K24:L26) -> 0 | N25: 0 | R25: 23rd
H26: None | N26: 0 | R26: 24th
H27: None | N27: 0 | R27: 25th
A28: Select Month | C28: Select | E28: Select | H28: None | M28: =SUM(K27:L29) -> 0 | N28: 0 | R28: 26th
H29: None | N29: 0 | R29: 27th
H30: None | N30: 0 | R30: 28th
A31: Select Month | C31: Select | E31: Select | H31: None | M31: =SUM(K30:L32) -> 0 | N31: 0 | R31: 29th
H32: None | N32: 0 | R32: 30th
H33: None | N33: 0 | R33: 31st
A34: Select Month | C34: Select | E34: Select | H34: None | M34: =SUM(K33:L35) -> 0 | N34: 0
H35: None | N35: 0
H36: None | N36: 0
A37: Select Month | C37: Select | E37: Select | H37: None | M37: =SUM(K36:L38) -> 0 | N37: 0
H38: None | N38: 0
H39: None | N39: 0
A40: Select Month | C40: Select | E40: Select | H40: None | M40: =SUM(K39:L41) -> 0 | N40: 0
H41: None | N41: 0
H42: None | N42: 0
A43: Select Month | C43: Select | E43: Select | H43: None | M43: =SUM(K42:L44) -> 0 | N43: 0
H44: None | N44: 0
H45: None | N45: 0
A46: Select Month | C46: Select | E46: Select | H46: None | M46: =SUM(K45:L47) -> 0 | N46: 0
H47: None | N47: 0
L48: Total: | M48: =SUM(M12:M47) -> 0
I49: =SUM(I12:J47) -> 0
A52: Notes / Comments: | I52: Authorizing Signature: _________________________ | N52: Date:

Sheet SAMPLE
Q1: Select Year
C2: STATE OF CALIFORNIA | H2: VOLUMETRIC ADDITIVE RECONCILIATION (VAR) | O2: Select | P2: Select | Q2: 2015 | R2: None
C3: California Environmental Protection Agency | O3: January | P3: 1st | Q3: 2016 | R3: Regular
C4: AIR RESOURCES BOARD | G4: Company Name: | I4: ANY COMPANY | O4: February | P4: 2nd | Q4: 2017 | R4: Midgrade
C5: ED/FOB/FES-152 (REV 02/23) | G5: Facility Location: | I5: ANYWHERE USA | O5: March | P5: 3rd | Q5: 2018 | R5: Premium
O6: April | P6: 4th | Q6: 2019 | R6: GAS
G7: Registered Additive: | I7: CARB Formula #101 | O7: May | P7: 5th | Q7: 2020
G8: Reference E.O. #: | I8: G-696-XXX | L8: LAC Rate: | M8: 0.12 | N8: gal/kgal | O8: June | P8: 6th | Q8: 2021
A9: YEAR: | B9: Select Year | O9: July | P9: 7th | Q9: 2022
G10: VOLUME of FUEL (gallons) | I10: VOLUME of DCA (gallons) | L10: ACTUAL CONCENTRATION | O10: August | P10: 8th | Q10: 2023
A11: Month: | B11: Date: | D11: thru: | F11: GRADE | K11: Total DCA: | N11: (gal/kgal) | O11: September | P11: 9th | Q11: 2024
F12: Regular | G12: 1000000 | I12: 150 | L12: =IF(G12=0,"0",I12/G12*1000) -> 0.15 | O12: October | P12: 10th | Q12: 2025
A13: January | C13: 1st | E13: 31st | F13: Midgrade | G13: 500000 | I13: 75 | K13: =SUM(I12:J14) -> 300 | L13: =IF(G13=0,"0",I13/G13*1000) -> 0.15 | O13: November | P13: 11th | Q13: 2026
F14: Premium | G14: 300000 | I14: 75 | L14: 0.25 | O14: December | P14: 12th | Q14: 2027
F15: Regular | G15: 1000000 | I15: 150 | L15: 0.15 | O15: End Page | P15: 13th | Q15: 2028
A16: February | C16: 1st | E16: 29th | F16: Midgrade | G16: 400000 | I16: 60 | K16: =SUM(I15:J17) -> 235 | L16: 0.15 | P16: 14th | Q16: 2029
F17: Premium | G17: 100000 | I17: 25 | L17: 0.25 | P17: 15th | Q17: 2030
F18: Regular | G18: 2000000 | I18: 250 | L18: 0.125 | P18: 19th
A19: March | C19: 17th | E19: 31st | F19: None | G19: 0 | I19: 0 | K19: =SUM(I18:J20) -> 250 | L19: 0 | P19: 20th
F20: None | G20: 0 | I20: 0 | L20: 0 | P20: 21st
L21: 0 | P21: 22nd
A22: April | C22: 1st | E22: 30th | F22: GAS | G22: 850000 | I22: 150 | K22: =SUM(I21:J23) -> 150 | L22: =IF(G22=0,"0",I22/G22*1000) -> 0.1764705882 | P22: 23rd
L23: =IF(G23=0,"0",I23/G23*1000) -> 0 | P23: 24th
F24: Regular | G24: 2000000 | I24: 200 | L24: 0.1 | P24: 28th
A25: May | C25: 7th | E25: 31st | F25: None | G25: 0 | I25: 0 | K25: =SUM(I24:J26) -> 320 | L25: 0 | P25: 29th
F26: Premium | G26: 800000 | I26: 120 | L26: 0.15 | P26: 30th
F27: Regular | G27: 2200000 | I27: 275 | L27: 0.125 | P27: 31st
A28: June | C28: 1st | E28: 30th | F28: None | G28: 0 | I28: 0 | K28: =SUM(I27:J29) -> 425 | L28: 0
F29: Premium | G29: 950000 | I29: 150 | L29: 0.1578947368
F30: Regular | G30: 2000000 | I30: 250 | L30: 0.125
A31: July | C31: 1st | E31: 31st | F31: None | G31: 0 | I31: 0 | K31: =SUM(I30:J32) -> 385 | L31: 0
F32: Premium | G32: 850000 | I32: 135 | L32: 0.1588235294
F33: Regular | G33: 2000000 | I33: 250 | L33: 0.125
A34: August | C34: 1st | E34: 31st | F34: None | G34: 0 | I34: 0 | K34: =SUM(I33:J35) -> 375 | L34: 0
F35: Premium | G35: 800000 | I35: 125 | L35: 0.15625
F36: Regular | G36: 1750000 | I36: 330 | L36: 0.1885714286
A37: September | C37: 1st | E37: 30th | F37: Midgrade | G37: 675000 | I37: 175 | K37: =SUM(I36:J38) -> 625 | L37: 0.2592592593
F38: Premium | G38: 800000 | I38: 120 | L38: 0.15
F39: Regular | G39: 1000000 | I39: 150 | L39: 0.15
A40: October | C40: 1st | E40: 4th | F40: Midgrade | G40: 500000 | I40: 75 | K40: =SUM(I39:J41) -> 300 | L40: 0.15
F41: Premium | G41: 300000 | I41: 75 | L41: 0.25
F42: Regular | G42: 1000000 | I42: 150 | L42: 0.15
A43: November | C43: 1st | E43: 22nd | F43: Midgrade | G43: 500000 | I43: 75 | K43: =SUM(I42:J44) -> 300 | L43: 0.15
F44: Premium | G44: 300000 | I44: 75 | L44: 0.25
F45: Regular | G45: 32500000 | I45: 250 | L45: 0.007692307692
A46: December | C46: 1st | E46: 24th | F46: None | G46: 0 | I46: 0 | K46: =SUM(I45:J47) -> 385 | L46: 0
F47: Premium | G47: 850000 | I47: 135 | L47: 0.1588235294
F48: None | L48: 0
A49: Select | C49: Select | E49: Select | F49: None | K49: =SUM(I48:J50) -> 0 | L49: 0
F50: None | L50: 0
J51: Total: | K51: =SUM(K12:K50) -> 4050
G52: =SUM(G12:H50) -> 57925000
A55: Notes / Comments: | G55: Authorizing Signature: _________________________ | L55: Date:
